bitfinex-derivatives/quotes_BTCF0:USTF0_20250905
["timestamp","ask_amount","ask_price","bid_price","bid_amount"]
[1757093218695,0.1009441,110800.0,110790.0,1.57831649]
[1757093219390,0.1232841,110800.0,110790.0,0.59788627]
[1757093219692,0.1232841,110800.0,110790.0,0.59788617]
[1757093221090,0.1232841,110800.0,110790.0,0.58478473]
[1757093221295,0.1232841,110800.0,110790.0,0.59788596]
[1757093223101,0.1232841,110800.0,110790.0,0.93788596]
[1757093223599,0.1232841,110800.0,110790.0,0.92478473]
[1757093224790,0.1009441,110800.0,110790.0,1.29441495]
[1757093224996,0.1009441,110800.0,110790.0,1.90521495]
[1757093225498,0.1009441,110800.0,110790.0,1.90421495]
[1757093226301,0.1009441,110800.0,110790.0,1.90321495]
[1757093226494,0.1009441,110800.0,110790.0,1.90521495]
[1757093226701,0.1009441,110800.0,110790.0,1.90421495]
[1757093227499,0.1009441,110800.0,110790.0,2.13030473]
[1757093227697,0.1009441,110800.0,110790.0,0.91595451]
[1757093227897,0.1232841,110800.0,110790.0,0.91595451]
[1757093228099,0.1232841,110800.0,110790.0,1.28558473]
[1757093228900,0.1232841,110800.0,110790.0,1.19533033]
[1757093229102,0.1232841,110800.0,110790.0,1.28558483]
[1757093229605,0.1232841,110800.0,110790.0,1.36667374]
[1757093230008,0.1232841,110800.0,110790.0,0.90678902]
[1757093230204,0.1232841,110800.0,110790.0,0.54598902]
[1757093230398,0.1232841,110800.0,110790.0,0.54498902]
[1757093230598,0.1232841,110800.0,110790.0,0.63524352]
[1757093230806,0.1232841,110800.0,110790.0,1.00387374]
[1757093231504,0.1232841,110800.0,110790.0,0.63424352]
[1757093231809,0.1232841,110800.0,110790.0,1.00387374]
[1757093232005,0.9669641,110800.0,110790.0,1.00387374]
[1757093232808,0.9669641,110800.0,110790.0,0.91361924]
[1757093234303,1.3277641,110800.0,110790.0,0.54398902]
[1757093235406,0.9669641,110800.0,110790.0,0.54398902]
[1757093235607,1.3277641,110800.0,110790.0,0.54398902]
[1757093236007,1.3277641,110800.0,110790.0,0.91361924]
[1757093236208,0.1232841,110800.0,110790.0,1.00387374]
[1757093245313,0.4840841,110800.0,110790.0,1.00387374]
[1757093245504,0.4840841,110800.0,110790.0,0.91361924]
[1757093246419,0.85371432,110800.0,110790.0,0.54398902]
[1757093247414,0.4840841,110800.0,110790.0,0.54398902]
[1757093247715,0.4840841,110800.0,110790.0,0.91361924]
[1757093250511,0.4840841,110800.0,110790.0,0.54398902]
[1757093251020,0.85371432,110800.0,110790.0,0.54398902]
[1757093251718,0.4840841,110800.0,110790.0,0.54398902]
[1757093257318,1.3220041,110800.0,110790.0,0.54398902]
[1757093258923,1.69459432,110800.0,110790.0,0.53014902]
[1757093259128,1.69459432,110800.0,110790.0,0.26713902]
[1757093259915,1.69459432,110800.0,110790.0,0.28987902]
[1757093260117,1.94459432,110800.0,110790.0,0.18605011]
[1757093260317,1.94459432,110800.0,110790.0,0.26713902]
[1757093260826,1.94459432,110800.0,110790.0,0.07605011]
[1757093262734,1.95344519,110800.0,110790.0,0.07605011]
[1757093266827,1.11552519,110800.0,110790.0,0.07605011]
[1757093267119,1.94339432,110800.0,110790.0,0.09879011]
[1757093267626,1.94335432,110800.0,110790.0,0.09879011]
[1757093267827,1.94323432,110800.0,110790.0,0.09879011]
[1757093268020,1.94323432,110800.0,110790.0,0.07605011]
[1757093270029,1.95228218,110800.0,110790.0,0.07605011]
[1757093271024,1.95228218,110800.0,110790.0,0.00304]
[1757093271422,2.3219124,110800.0,110790.0,0.00304]
[1757093272325,1.95228218,110800.0,110790.0,0.00304]
[1757093275123,1.95152218,110800.0,110790.0,0.00304]
[1757093275628,1.10667432,110800.0,110790.0,0.02573]
[1757093275830,1.94235432,110800.0,110790.0,0.02573]
[1757093277329,1.94235432,110800.0,110790.0,0.00304]
[1757093277628,1.10667432,110800.0,110790.0,0.00304]
[1757093277829,1.94215432,110800.0,110790.0,0.00304]
[1757093279433,2.31223534,110800.0,110790.0,0.00304]
[1757093281622,1.47675534,110800.0,110790.0,0.02573]
[1757093281924,2.69195534,110800.0,110790.0,0.02573]
[1757093282121,1.22675534,110800.0,110790.0,0.39558562]
[1757093282325,2.05855534,110800.0,110790.0,0.28862]
[1757093282523,2.05855534,110800.0,110790.0,0.65847562]
[1757093282724,2.05855534,110800.0,110790.0,0.28862]
[1757093284328,2.05855534,110800.0,110790.0,0.27573]
[1757093284533,2.06151534,110800.0,110790.0,0.27573]
[1757093285932,2.06151534,110800.0,110790.0,0.25304]
[1757093286141,2.08402993,110800.0,110790.0,0.00304]
[1757093286834,2.45388555,110800.0,110790.0,0.00304]
[1757093288331,2.45388555,110800.0,110780.0,0.07389041]
[1757093288332,0.03059,110780.0,110770.0,0.0001]
[1757093288533,0.03059,110770.0,110760.0,0.01816171]
[1757093288735,0.76124562,110770.0,110760.0,0.01816171]
[1757093289238,1.23204534,110770.0,110750.0,0.01289]
[1757093289434,1.95658124,110760.0,110750.0,0.03558]
[1757093290239,2.05752534,110760.0,110750.0,0.03558]
[1757093290937,2.05752534,110760.0,110750.0,0.1059948]
[1757093291147,2.05752534,110760.0,110750.0,0.03558]
[1757093291540,2.06048534,110760.0,110750.0,0.02269]
[1757093291932,2.06048534,110760.0,110750.0,0.02369]
[1757093292444,2.05752534,110760.0,110750.0,0.02369]
[1757093292645,2.05752534,110760.0,110750.0,0.03658]
[1757093294636,1.22312534,110760.0,110750.0,0.03658]
[1757093294838,1.3169741,110760.0,110750.0,0.03658]
[1757093295038,1.3169741,110760.0,110750.0,0.40643562]
[1757093295342,1.3169341,110760.0,110750.0,0.8174913]
[1757093296246,1.68678972,110760.0,110750.0,0.7272043]
[1757093297743,1.68698972,110760.0,110750.0,0.7272043]
[1757093298445,1.68674972,110760.0,110750.0,0.7272043]
[1757093299147,1.68674972,110760.0,110750.0,0.7271643]
[1757093302349,1.68674972,110760.0,110750.0,0.35730868]
[1757093302646,1.68674972,110760.0,110750.0,0.7271643]
[1757093304651,1.3168941,110760.0,110750.0,0.7271643]
[1757093304853,1.68674972,110760.0,110750.0,0.7271643]
[1757093310053,1.3150941,110760.0,110750.0,0.7271643]
[1757093310251,1.68494972,110760.0,110750.0,0.7271643]
[1757093310853,1.68494972,110760.0,110750.0,0.35730868]
[1757093311055,2.05480534,110760.0,110750.0,0.7271643]
[1757093311258,2.05776534,110760.0,110750.0,0.35730868]
[1757093311649,2.05480534,110760.0,110750.0,0.35730868]
[1757093313452,2.05480534,110760.0,110750.0,0.7271643]
[1757093315452,2.05480534,110760.0,110750.0,0.80825321]
[1757093317358,1.68494972,110760.0,110750.0,0.80825321]
[1757093317560,2.05480534,110760.0,110750.0,0.80825321]
[1757093318053,2.05480534,110760.0,110750.0,0.43839759]
[1757093318246,2.30776534,110760.0,110750.0,0.07176868]
[1757093318957,2.30776534,110760.0,110750.0,0.09284868]
[1757093319261,2.05776534,110760.0,110750.0,0.09284868]
[1757093319759,2.05752534,110760.0,110750.0,0.09284868]
[1757093320766,1.22608534,110760.0,110750.0,0.09284868]
[1757093320955,2.05728534,110760.0,110750.0,0.09284868]
[1757093321462,2.05728534,110760.0,110750.0,0.17393759]
[1757093321765,2.05728534,110760.0,110750.0,0.09284868]
[1757093325462,1.22312534,110760.0,110750.0,0.10646868]
[1757093325670,2.05416534,110760.0,110750.0,0.10646868]
[1757093326766,1.3143741,110760.0,110750.0,0.10646868]
[1757093327071,2.05408534,110760.0,110750.0,0.18755759]
[1757093327362,2.05408534,110760.0,110750.0,0.10646868]
[1757093327561,2.05408534,110760.0,110750.0,0.18755759]
[1757093328162,2.05376534,110760.0,110750.0,0.18755759]
[1757093328369,2.05376534,110760.0,110750.0,0.10646868]
[1757093329173,2.05376534,110760.0,110750.0,0.09284868]
[1757093329174,2.05672534,110760.0,110750.0,0.09284868]
[1757093329378,2.05672534,110760.0,110750.0,0.07176868]
[1757093329580,2.67658096,110760.0,110750.0,0.001]
[1757093329775,2.30672534,110760.0,110750.0,0.001]
[1757093332680,0.7363741,110760.0,110750.0,0.001]
[1757093332981,2.30352534,110760.0,110750.0,0.03677]
[1757093333975,1.5638141,110760.0,110750.0,0.40662562]
[1757093334173,2.30352534,110760.0,110750.0,0.03677]
[1757093334373,2.30352534,110760.0,110750.0,0.11785891]
[1757093335083,1.5638141,110760.0,110750.0,0.11785891]
[1757093335280,2.30352534,110760.0,110750.0,0.11785891]
[1757093337986,2.30352534,110760.0,110750.0,0.03677]
[1757093338185,2.30648534,110760.0,110750.0,0.02315]
[1757093340187,1.5667741,110760.0,110750.0,0.02315]
[1757093340384,2.30648534,110760.0,110750.0,0.02315]
[1757093341487,1.93684839,110760.0,110750.0,0.02315]
[1757093343091,2.25684839,110760.0,110750.0,0.02315]
[1757093344086,2.27973106,110760.0,110750.0,0.02315]
[1757093344289,2.25684839,110760.0,110750.0,0.02315]
[1757093346292,2.25684839,110760.0,110750.0,0.001]
[1757093347093,1.42644839,110760.0,110750.0,0.02315]
[1757093347391,1.42644839,110760.0,110750.0,0.03677]
[1757093347392,2.27646904,110760.0,110750.0,0.03677]
[1757093348791,2.27942904,110760.0,110750.0,0.02315]
[1757093350482,2.27942904,110760.0,110750.0,0.001]
[1757093350686,2.64950333,110760.0,110750.0,0.001]
[1757093351587,2.27942904,110760.0,110750.0,0.02315]
[1757093351787,1.95942904,110760.0,110750.0,0.02315]
[1757093353192,1.95942904,110760.0,110750.0,0.001]
[1757093353391,1.93656839,110760.0,110750.0,0.001]
[1757093353590,2.30664268,110760.0,110750.0,0.001]
[1757093354286,2.07948209,110760.0,110750.0,0.001]
[1757093363101,2.05664268,110760.0,110750.0,0.001]
[1757093363292,2.07947943,110760.0,110750.0,0.001]
[1757093363490,2.42947943,110760.0,110750.0,0.001]
[1757093364796,1.22928514,110760.0,110750.0,0.001]
[1757093365004,0.85625085,110760.0,110750.0,0.03701]
[1757093365292,2.05604514,110760.0,110750.0,0.03701]
[1757093365505,2.05900514,110760.0,110750.0,0.02325]
[1757093367004,2.05900514,110760.0,110750.0,0.001]
[1757093367203,2.05900514,110760.0,110750.0,0.02325]
[1757093367502,2.05900514,110760.0,110750.0,0.001]
[1757093367801,2.05900514,110760.0,110750.0,0.02325]
[1757093368001,2.05900514,110760.0,110750.0,0.001]
[1757093368201,2.05900514,110760.0,110750.0,0.02325]
[1757093369003,1.22928514,110760.0,110750.0,0.02325]
[1757093369196,1.70900514,110760.0,110750.0,0.02325]
[1757093369397,2.03900514,110760.0,110750.0,0.02325]
[1757093370004,2.03900514,110760.0,110750.0,0.001]
[1757093370204,2.03900514,110760.0,110750.0,0.02325]
[1757093370393,2.03900514,110760.0,110750.0,0.001]
[1757093371705,2.40907943,110760.0,110750.0,0.001]
[1757093374015,1.66893085,110760.0,110750.0,0.02325]
[1757093374308,2.03900514,110760.0,110750.0,0.001]
[1757093374699,2.03900514,110760.0,110750.0,0.28701]
[1757093374700,0.83625085,110760.0,110750.0,0.28701]
[1757093375008,1.68320839,110760.0,110750.0,0.28701]
[1757093376002,1.68616839,110760.0,110750.0,0.02325]
[1757093376299,2.07912029,110760.0,110750.0,0.001]
[1757093378399,2.38912029,110760.0,110750.0,0.001]
[1757093380810,2.019046,110760.0,110750.0,0.001]
[1757093382415,2.38912029,110760.0,110750.0,0.001]
[1757093383914,2.019046,110760.0,110750.0,0.001]
[1757093385817,2.38912029,110760.0,110750.0,0.001]
[1757093390017,2.07912029,110760.0,110750.0,0.001]
[1757093392319,1.24940029,110760.0,110750.0,0.001]
[1757093392520,2.07908029,110760.0,110750.0,0.02236]
[1757093392712,2.07908029,110760.0,110750.0,0.001]
[1757093393421,2.42908029,110760.0,110750.0,0.001]
[1757093394016,1.229326,110760.0,110750.0,0.001]
[1757093394214,1.709006,110760.0,110750.0,0.02236]
[1757093394418,1.706046,110760.0,110750.0,0.0359]
[1757093394718,1.706046,110760.0,110750.0,0.001]
[1757093394916,1.709006,110760.0,110750.0,0.02236]
[1757093395822,1.709006,110760.0,110750.0,0.001]
[1757093399025,1.709006,110760.0,110750.0,0.02236]
[1757093400522,2.07908029,110760.0,110750.0,0.001]
[1757093400725,0.02611,110750.0,110740.0,0.0001]
[1757093400926,0.0301,110730.0,110720.0,0.0001]
[1757093401227,2.42375268,110730.0,110710.0,0.01354]
[1757093401529,1.12264892,110720.0,110710.0,0.0449]
[1757093401739,0.75232946,110720.0,110710.0,0.48829678]
[1757093402026,0.75232946,110720.0,110710.0,0.41521946]
[1757093402229,0.4779541,110720.0,110710.0,0.50553866]
[1757093402622,1.3121141,110720.0,110710.0,0.50553866]
[1757093403028,1.3131141,110720.0,110710.0,0.51253866]
[1757093403226,1.3131141,110720.0,110710.0,0.50253866]
[1757093403423,1.68343356,110720.0,110710.0,0.50253866]
[1757093403624,0.85027356,110720.0,110710.0,0.50653866]
[1757093403825,0.1241541,110720.0,110710.0,0.76556363]
[1757093404027,0.8557141,110720.0,110710.0,0.76556363]
[1757093404932,0.8557141,110720.0,110710.0,1.20745254]
[1757093405124,0.8557141,110720.0,110710.0,0.84665254]
[1757093405525,0.9379841,110720.0,110710.0,1.20745254]
[1757093405826,0.9591941,110720.0,110710.0,0.84665254]
[1757093406033,0.9591941,110720.0,110710.0,0.41178272]
[1757093406034,1.69983302,110720.0,110710.0,0.41178272]
[1757093406229,2.06063302,110720.0,110710.0,0.33069381]
[1757093406430,1.3199941,110720.0,110710.0,0.5873042]
[1757093406632,1.69031356,110720.0,110710.0,0.5873042]
[1757093407532,0.85527356,110720.0,110710.0,0.5873042]
[1757093407832,1.69027356,110720.0,110710.0,0.5873042]
[1757093408933,1.69027356,110720.0,110710.0,0.21698474]
[1757093409135,1.69027356,110720.0,110710.0,0.5873042]
[1757093409832,2.06059302,110720.0,110710.0,0.2078928]
[1757093410129,2.06059302,110720.0,110710.0,0.19886783]
[1757093410728,2.06059302,110720.0,110710.0,0.11764067]
[1757093412133,1.3199541,110720.0,110710.0,0.11764067]
[1757093412334,2.06059302,110720.0,110710.0,0.11764067]
[1757093414431,1.22559302,110720.0,110710.0,0.11764067]
[1757093414642,1.3259141,110720.0,110710.0,0.57827923]
[1757093414837,1.69623356,110720.0,110710.0,0.57827923]
[1757093415029,1.3259941,110720.0,110710.0,0.57827923]
[1757093415229,1.67510356,110720.0,110710.0,0.57827923]
[1757093415430,1.69793356,110720.0,110710.0,0.57827923]
[1757093417741,1.69793356,110720.0,110710.0,0.11764067]
[1757093417942,1.69793356,110720.0,110710.0,0.48796013]
[1757093418340,1.69793356,110720.0,110710.0,0.57827923]
[1757093418942,1.69793356,110720.0,110710.0,0.48796013]
[1757093419440,1.69793356,110720.0,110710.0,0.57827923]
[1757093421947,1.3276141,110720.0,110710.0,0.57827923]
[1757093422149,1.69793356,110720.0,110710.0,0.57827923]
[1757093422342,1.3276141,110720.0,110710.0,0.57827923]
[1757093422537,1.69793356,110720.0,110710.0,0.57827923]
[1757093424642,1.69793356,110720.0,110710.0,0.11764067]
[1757093424846,1.3276141,110720.0,110710.0,0.11764067]
[1757093425138,2.06825302,110720.0,110710.0,0.11764067]
[1757093425343,1.69793356,110720.0,110710.0,0.57827923]
[1757093426347,1.69793356,110720.0,110710.0,0.20795977]
[1757093426544,1.69793356,110720.0,110710.0,0.57827923]
[1757093426739,2.06825302,110720.0,110710.0,0.11764067]
[1757093426935,2.32121302,110720.0,110710.0,0.011]
[1757093428049,2.32121302,110720.0,110710.0,0.03309]
[1757093428447,2.31825302,110720.0,110710.0,0.0469]
[1757093430245,2.31825302,110720.0,110710.0,0.03309]
[1757093430550,2.32121302,110720.0,110710.0,0.03309]
[1757093431249,1.5805741,110720.0,110710.0,0.03309]
[1757093431452,2.32121302,110720.0,110710.0,0.03309]
[1757093431950,1.5776141,110720.0,110710.0,0.0469]
[1757093432150,2.31825302,110720.0,110710.0,0.0469]
[1757093434054,2.31825302,110720.0,110710.0,0.03309]
[1757093434353,2.31825302,110720.0,110710.0,0.0469]
[1757093436652,2.32121302,110720.0,110710.0,0.03309]
[1757093436853,2.32121302,110720.0,110710.0,0.011]
[1757093437054,2.32121302,110720.0,110710.0,0.03309]
[1757093438155,1.47721302,110720.0,110710.0,0.0469]
[1757093438352,2.31645302,110720.0,110710.0,0.0469]
[1757093438650,1.47721302,110720.0,110710.0,0.0469]
[1757093438851,1.5756941,110720.0,110710.0,0.0469]
[1757093439051,2.31633302,110720.0,110710.0,0.0469]
[1757093439254,2.06633302,110720.0,110710.0,0.0469]
[1757093439647,1.22721302,110720.0,110710.0,0.41721946]
[1757093439846,1.69585356,110720.0,110710.0,0.41721946]
[1757093440266,1.69585356,110720.0,110710.0,0.0469]
[1757093440560,1.22721302,110720.0,110710.0,0.41721946]
[1757093440758,1.69585356,110720.0,110710.0,0.41721946]
[1757093440945,1.69565356,110720.0,110710.0,0.75753856]
[1757093442158,1.69541356,110720.0,110710.0,0.75753856]
[1757093445059,2.06573302,110720.0,110710.0,0.2969]
[1757093445763,1.69541356,110720.0,110710.0,0.66721946]
[1757093446058,1.69541356,110720.0,110710.0,0.75753856]
[1757093446355,2.06573302,110720.0,110710.0,0.0469]
[1757093446861,1.3250941,110720.0,110710.0,0.0469]
[1757093447166,2.06573302,110720.0,110710.0,0.0469]
[1757093448963,2.06573302,110720.0,110710.0,0.41721946]
[1757093448964,1.69541356,110720.0,110710.0,0.41721946]
[1757093449260,1.69541356,110720.0,110710.0,0.50753856]
[1757093449451,0.4865741,110720.0,110710.0,0.77550921]
[1757093449651,0.1029441,110720.0,110710.0,1.50662867]
[1757093449853,0.1029441,110720.0,110710.0,1.58785583]
[1757093450253,0.1029441,110720.0,110710.0,1.61785583]
[1757093451656,0.0001,110730.0,110720.0,0.124281]
[1757093451855,0.0001,110740.0,110730.0,0.1242728]
[1757093452063,1.05183,110750.0,110740.0,0.1242647]
[1757093452362,1.05183,110750.0,110740.0,0.86490362]
[1757093452363,1.07493676,110750.0,110740.0,0.86490362]
[1757093452956,1.07493676,110750.0,110740.0,0.1242647]
[1757093453264,1.05173,110750.0,110740.0,0.86490362]
[1757093453460,1.42204946,110750.0,110740.0,0.40428946]
[1757093453671,2.05125892,110750.0,110740.0,0.001]
[1757093453964,2.07443121,110750.0,110740.0,0.001]
[1757093455971,2.09443121,110750.0,110740.0,0.004]
[1757093456274,2.09443121,110750.0,110730.0,0.0001]
[1757093456469,1.12394892,110740.0,110730.0,0.0001]
[1757093456770,0.0323,110730.0,110720.0,0.0001]
[1757093456966,0.02251,110720.0,110710.0,0.13433781]
[1757093457269,1.12690892,110720.0,110700.0,0.17421263]
[1757093457469,1.59130946,110710.0,110700.0,0.29544263]
[1757093457669,1.96162892,110710.0,110700.0,0.22436136]
[1757093457869,2.22051892,110710.0,110700.0,0.08126716]
[1757093458067,1.85019946,110710.0,110700.0,0.08126716]
[1757093459263,2.21851892,110710.0,110700.0,0.08126716]
[1757093459463,2.21851892,110710.0,110700.0,4e-05]
[1757093459673,2.21651892,110710.0,110700.0,4e-05]
[1757093459974,1.47588,110710.0,110700.0,4e-05]
[1757093460165,1.84619946,110710.0,110700.0,4e-05]
[1757093460471,1.47119,110710.0,110700.0,0.03401]
[1757093460668,1.84150946,110710.0,110700.0,0.03401]
[1757093460867,1.84150946,110710.0,110700.0,0.03601]
[1757093461067,1.85039946,110710.0,110700.0,0.00204]
[1757093462073,2.22071892,110710.0,110700.0,0.00204]
[1757093462375,1.85039946,110710.0,110700.0,0.00204]
[1757093462569,2.22071892,110710.0,110700.0,0.00204]
[1757093463273,1.48008,110710.0,110700.0,0.00204]
[1757093463572,1.85051991,110710.0,110700.0,0.00204]
[1757093464077,1.85051991,110710.0,110700.0,0.002]
[1757093467069,1.85051991,110710.0,110700.0,0.02323]
[1757093467262,1.85051991,110710.0,110700.0,0.002]
[1757093467462,1.60051991,110710.0,110700.0,0.002]
[1757093467774,1.85051991,110710.0,110700.0,0.002]
[1757093468366,1.01263991,110710.0,110700.0,0.002]
[1757093468567,1.85763991,110710.0,110700.0,0.002]
[1757093470175,2.22807982,110710.0,110700.0,0.002]
[1757093470569,1.86763991,110710.0,110700.0,0.002]
[1757093472276,0.39331,110710.0,110700.0,0.002]
[1757093472479,1.23775,110710.0,110700.0,0.03597]
[1757093472680,1.60818991,110710.0,110700.0,0.002]
[1757093472981,1.61707991,110710.0,110700.0,0.002]
[1757093473176,1.61707991,110710.0,110700.0,0.02323]
[1757093473375,0.77263991,110710.0,110700.0,0.002]
[1757093473575,1.61699991,110710.0,110700.0,0.002]
[1757093474281,1.61699991,110710.0,110700.0,0.02323]
[1757093475196,1.24656,110710.0,110700.0,0.002]
[1757093475392,1.61699991,110710.0,110700.0,0.002]
[1757093475596,1.61699991,110710.0,110700.0,0.03665]
[1757093475597,1.60766991,110710.0,110700.0,0.03665]
[1757093475988,1.23723,110710.0,110700.0,0.28665]
[1757093476693,1.60766991,110710.0,110700.0,0.28665]
[1757093476890,1.60766991,110710.0,110700.0,0.03665]
[1757093477092,1.61655991,110710.0,110700.0,0.002]
[1757093477294,1.61655991,110710.0,110700.0,0.0237]
[1757093477497,1.24612,110710.0,110700.0,0.0237]
[1757093477791,1.61655991,110710.0,110700.0,0.002]
[1757093478186,1.61655991,110710.0,110700.0,0.0237]
[1757093480987,1.61655991,110710.0,110700.0,0.03712]
[1757093481394,1.60766991,110710.0,110700.0,0.03712]
[1757093482296,1.61655991,110710.0,110700.0,0.002]
[1757093482502,1.61655991,110710.0,110700.0,0.0237]
[1757093483095,1.63088609,110710.0,110700.0,0.0237]
[1757093483686,1.63977609,110710.0,110700.0,0.002]
[1757093483884,1.88977609,110710.0,110700.0,0.002]
[1757093484093,2.22977609,110710.0,110700.0,0.002]
[1757093484494,2.630216,110710.0,110700.0,0.002]
[1757093484693,2.25977609,110710.0,110700.0,0.002]
[1757093489900,1.88933618,110710.0,110700.0,0.002]
[1757093490198,2.25977609,110710.0,110700.0,0.002]
[1757093490396,1.24808618,110710.0,110700.0,0.0237]
[1757093490593,1.24808618,110710.0,110700.0,0.28712]
[1757093490594,0.77696609,110710.0,110700.0,0.28712]
[1757093490798,1.61852609,110710.0,110700.0,0.28712]
[1757093490986,1.59530991,110710.0,110700.0,0.28712]
[1757093491392,1.61851344,110710.0,110700.0,0.28712]
[1757093491793,1.59530991,110710.0,110700.0,0.28712]
[1757093492502,1.61851337,110710.0,110700.0,0.28712]
[1757093492700,1.59530991,110710.0,110700.0,0.28712]
[1757093493005,1.60419991,110710.0,110700.0,0.252]
[1757093493599,1.60419991,110710.0,110690.0,0.0001]
[1757093493600,2.22463982,110710.0,110690.0,0.0001]
[1757093493901,0.03241,110680.0,110670.0,0.0001]
[1757093494097,1.60580991,110680.0,110660.0,0.01342]
[1757093494288,1.12343982,110670.0,110660.0,0.01342]
[1757093494495,0.75299991,110670.0,110660.0,0.08122716]
[1757093494692,0.75299991,110670.0,110650.0,0.09464716]
[1757093494893,1.59507991,110660.0,110650.0,0.22634716]
[1757093495095,1.59507991,110660.0,110650.0,0.47634716]
[1757093495302,1.22164,110660.0,110650.0,0.22634716]
[1757093495601,0.86372,110660.0,110650.0,0.31671526]
[1757093495797,0.86372,110660.0,110650.0,0.22634716]
[1757093496006,1.59495991,110660.0,110650.0,0.22634716]
[1757093496192,1.59495991,110660.0,110650.0,0.12134716]
[1757093496396,1.59495991,110660.0,110650.0,0.04012]
[1757093497104,1.59495991,110660.0,110650.0,0.005]
[1757093497405,1.60384991,110660.0,110650.0,0.005]
[1757093497603,1.59495991,110660.0,110650.0,0.0267]
[1757093498110,1.59495991,110660.0,110650.0,0.0217]
[1757093498304,1.59695991,110660.0,110650.0,0.006]
[1757093498999,1.59595991,110660.0,110650.0,0.004]
[1757093499309,1.60584991,110660.0,110650.0,0.004]
[1757093499698,1.60484991,110660.0,110650.0,0.001]
[1757093499906,1.60584991,110660.0,110650.0,0.002]
[1757093500413,1.85584991,110660.0,110650.0,0.002]
[1757093500797,1.08744842,110660.0,110650.0,0.002]
[1757093500996,1.92928842,110660.0,110650.0,0.002]
[1757093501207,1.08744842,110660.0,110650.0,0.002]
[1757093501407,1.67920842,110660.0,110650.0,0.002]
[1757093502409,1.30876851,110660.0,110650.0,0.002]
[1757093502810,1.67920842,110660.0,110650.0,0.002]
[1757093503513,1.92920842,110660.0,110650.0,0.002]
[1757093504611,1.67900842,110660.0,110650.0,0.002]
[1757093505016,0.83744842,110660.0,110650.0,0.002]
[1757093505316,1.67916842,110660.0,110650.0,0.002]
[1757093505813,0.76388991,110660.0,110650.0,0.002]
[1757093506002,1.60552991,110660.0,110650.0,0.002]
[1757093507506,2.58596982,110660.0,110630.0,0.00937541]
[1757093507706,1.13291982,110640.0,110630.0,0.00927541]
[1757093507917,1.97459982,110640.0,110620.0,0.08743176]
[1757093508112,0.75382991,110630.0,110620.0,0.11988176]
[1757093508509,0.75382991,110630.0,110620.0,0.04587]
[1757093509006,0.38339,110630.0,110620.0,0.03587]
[1757093509206,0.75382991,110630.0,110620.0,0.03587]
[1757093509406,1.22007,110630.0,110620.0,0.03587]
[1757093509603,1.22107,110630.0,110620.0,0.03987]
[1757093509811,0.38439,110630.0,110620.0,0.03987]
[1757093510010,1.22575,110630.0,110620.0,0.03987]
[1757093510310,0.84232,110630.0,110620.0,1.20161009]
[1757093510516,0.84332,110630.0,110620.0,0.7420626]
[1757093510707,0.86591,110630.0,110620.0,0.7420626]
[1757093511106,0.002,110630.0,110620.0,0.7420626]
[1757093511305,0.002,110630.0,110620.0,1.22125071]
[1757093511713,0.21906,110650.0,110640.0,0.1255163]
[1757093512015,0.02269,110660.0,110650.0,0.03514]
[1757093512319,0.86499,110660.0,110650.0,0.03514]
[1757093512710,0.02259,110660.0,110650.0,0.03514]
[1757093512910,0.86487,110660.0,110650.0,0.03514]
[1757093513320,0.86787,110660.0,110650.0,0.03614]
[1757093514117,1.22867,110660.0,110650.0,0.03614]
[1757093515112,1.68921749,110660.0,110650.0,0.001]
[1757093515412,1.93921749,110660.0,110650.0,0.001]
[1757093515811,1.94021749,110660.0,110650.0,0.001]
[1757093519108,0.86811,110660.0,110650.0,0.03614]
[1757093519313,0.86811,110660.0,110650.0,0.1265081]
[1757093519812,0.02659,110660.0,110650.0,0.13572156]
[1757093520008,0.86783,110660.0,110650.0,0.13572156]
[1757093520223,0.86783,110660.0,110650.0,0.38572156]
[1757093521023,0.004,110660.0,110650.0,0.84626905]
[1757093521216,0.004,110660.0,110650.0,1.20706905]
[1757093521620,0.38739,110660.0,110650.0,0.04535346]
[1757093521915,0.38739,110660.0,110650.0,0.03614]
[1757093522509,0.38739,110660.0,110650.0,0.04506985]
[1757093522713,0.38739,110660.0,110650.0,0.03614]
[1757093523115,0.4777499,110660.0,110650.0,0.03614]
[1757093523914,0.4777499,110660.0,110650.0,0.04538962]
[1757093524314,0.4777499,110660.0,110650.0,0.03614]
[1757093525620,0.94119834,110660.0,110650.0,0.001]
[1757093526014,1.19119834,110660.0,110650.0,0.001]
[1757093526209,1.21466712,110660.0,110650.0,0.001]
[1757093526826,0.75121868,110660.0,110650.0,0.001]
[1757093527123,1.19119834,110660.0,110650.0,0.001]
[1757093528519,0.4777499,110660.0,110650.0,0.03614]
[1757093528820,1.79052834,110660.0,110650.0,0.001]
[1757093529325,2.04052834,110660.0,110650.0,0.001]
[1757093530528,2.03163834,110660.0,110650.0,0.02345]
[1757093530713,1.78163834,110660.0,110650.0,0.03614]
[1757093531328,1.3187899,110660.0,110650.0,0.03614]
[1757093533321,1.78223834,110660.0,110650.0,0.03614]
[1757093533525,1.80587118,110660.0,110650.0,0.03614]
[1757093534325,1.34242274,110660.0,110650.0,0.03614]
[1757093535826,1.80587118,110660.0,110650.0,0.03614]
[1757093536229,1.80587118,110660.0,110650.0,0.01369]
[1757093536430,1.80587118,110660.0,110650.0,0.03508]
[1757093538027,1.34162274,110660.0,110650.0,0.03508]
[1757093538430,1.3179899,110660.0,110650.0,0.03508]
[1757093539029,1.34131549,110660.0,110650.0,0.03508]
[1757093539232,0.50139549,110660.0,110650.0,0.03508]
[1757093539428,0.98039549,110660.0,110650.0,0.375448]
[1757093539734,0.9567499,110660.0,110650.0,0.375448]
[1757093540234,1.3175499,110660.0,110650.0,0.375448]
[1757093540434,0.4777499,110660.0,110650.0,0.375448]
[1757093540635,0.9564699,110660.0,110650.0,0.375448]
[1757093540839,1.3172699,110660.0,110650.0,0.375448]
[1757093541133,0.9564699,110660.0,110650.0,0.375448]
[1757093542026,1.3172699,110660.0,110650.0,0.375448]
[1757093542226,0.9564699,110660.0,110650.0,0.375448]
[1757093542625,1.41991834,110660.0,110650.0,0.01369]
[1757093542824,1.41991834,110660.0,110650.0,0.001]
[1757093543028,1.78071834,110660.0,110650.0,0.001]
[1757093543238,2.03071834,110660.0,110650.0,0.001]
[1757093546036,1.5672699,110660.0,110650.0,0.001]
[1757093546239,2.03071834,110660.0,110650.0,0.001]
[1757093548042,2.03071834,110660.0,110650.0,0.02239]